[Event "DVM U20 2019"]
[Site "Braunschweig"]
[Date "2019.12.28"]
[Round "3"]
[White "Meyling, Lennart"]
[Black "Garbuz, Vitaliy"]
[Result "1-0"]
[ECO "D36"]
[WhiteElo "1955"]
[BlackElo "2064"]
[Annotator "NA RC"]
[PlyCount "53"]
[EventDate "2019.12.27"]
[EventType "team-tourn"]
[EventRounds "7"]
[EventCountry "GER"]
[SourceTitle "playchess.com"]
[Source "ChessBase"]
[SourceQuality "1"]
[WhiteTeam "Hamburger SK"]
[BlackTeam "SF Brackel"]
[TimeControl "40/5400+30:1800+30"]

1. d4 {[%emt 0:00:00]} d5 {[%emt 0:00:00]} 2. c4 {[%emt 0:00:00]} c6 {[%emt 0:00:34]} 3. Nc3 {[%emt 0:00:00]} e6 {[%emt 0:00:08]} 4. cxd5 {[%emt 0:00:00]} exd5 {[%emt 0:00:14]} 5. Qc2 {[%emt 0:00:16]} Nf6 {[%emt 0:01:13]} 6. Bg5 {[%emt 0:00:11]} Be7 {[%emt 0:00:13]} 7. e3 {[%emt 0:00:12]} Bg4 {[%emt 0:02:05]} 8. Bd3 {[%emt 0:00:27]} Bh5 {[%emt 0:04:41] D35: Queen's Gambit Declined: Exchange Variation} 9. Nf3 {[%emt 0:01:36]} (9. Nge2 Bg6 10. Ng3 Na6 11. a3 Nc7 12. Nf5 Ne6 13. h4 Bxf5 14. Bxf5 Qd6 15. O-O-O g6 16. Bd3 O-O-O 17. Kb1 Kb8 18. Bxf6 Bxf6 {1-0 (36) Vishnu,P (2504)-Nabaty,T (2692) Douglas 2018}) 9... Nbd7 {[%emt 0:02:15]} 10. Nh4 {[%emt 0:04:43]} Bg6 {[%emt 0:13:01]} 11. Nf5 {[%emt 0:04:33]} Bxf5 {[%emt 0:01:46]} 12. Bxf5 {[%emt 0:00:19]} Nh5 {[%emt 0:08:44]} 13. Bxe7 {[%emt 0:00:12]} Qxe7 {[%emt 0:00:09]} 14. O-O {[%emt 0:00:25]} g6 {[%emt 0:01:40] unterminated} 15. Bd3 {[%emt 0:02:42]} f5 {[%emt 0:01:35] [#]} 16. g3 $146 {[%emt 0:00:04]} ({Predecessor:} 16. b4 a6 17. a4 O-O {1-0 (38) Kruppa,Y (2525)-Katsman,M (2262) Kiev 2005}) 16... O-O {[%emt 0:00:41]} 17. b4 {[%emt 0:01:08]} a6 {[%emt 0:00:33]} 18. a4 {[%emt 0:00:33] unterminated} b5 {[%emt 0:09:37]} 19. axb5 {[%emt 0:00:17]} axb5 {[%emt 0:00:24] unterminated} 20. Ne2 {[%emt 0:03:48]} Qd6 {[%emt 0:02:31]} 21. Rfc1 {[%emt 0:02:20]} Rxa1 {[%emt 0:01:17]} 22. Rxa1 {[%emt 0:00:07]} Nb6 {[%emt 0:00:09]} 23. Qc5 {[%emt 0:01:44]} Qxc5 {[%emt 0:03:32]} 24. dxc5 {[%emt 0:00:18] normal} Na4 {[%emt 0:17:15]} 25. Nd4 {[%emt 0:01:19] normal} Nb2 {[%emt 0:09:18] normal} 26. Be2 {[%emt 0:00:22]} Rf6 {[%emt 0:00:05] normal} 27. Ra6 $18 {[%emt 0:00:52] normal} 1-0

[Event "DVM U20 2019"]
[Site "Braunschweig"]
[Date "2019.12.28"]
[Round "3"]
[White "Gorainow, Nikita"]
[Black "Wu, Leon"]
[Result "1/2-1/2"]
[ECO "C54"]
[WhiteElo "1946"]
[BlackElo "2019"]
[Annotator "NA RC"]
[PlyCount "111"]
[EventDate "2019.12.27"]
[EventType "team-tourn"]
[EventRounds "7"]
[EventCountry "GER"]
[SourceTitle "playchess.com"]
[Source "ChessBase"]
[SourceQuality "1"]
[WhiteTeam "SF Essen-Katernberg"]
[BlackTeam "OSG Baden-Baden"]
[TimeControl "40/5400+30:1800+30"]

1. e4 {[%emt 0:00:00]} e5 {[%emt 0:00:00]} 2. Nf3 {[%emt 0:00:00]} Nc6 {[%emt 0:00:00]} 3. Bc4 {[%emt 0:00:00]} Bc5 {[%emt 0:00:00]} 4. c3 {[%emt 0:00:00]} Nf6 {[%emt 0:00:01]} 5. d3 {[%emt 0:00:00]} d6 {[%emt 0:00:20]} 6. h3 {[%emt 0:00:31]} a6 {[%emt 0:00:38]} 7. Bb3 {[%emt 0:00:05] unterminated} Ba7 {[%emt 0:01:12]} 8. Nbd2 {[%emt 0:00:43]} Ne7 {[%emt 0:00:52] unterminated} 9. Nf1 {[%emt 0:01:34] C54: Giuoco Piano: 4 c3 Nf6, main lines with 5 d4 and 5 d3} Ng6 {[%emt 0:00:35] unterminated} 10. Ng3 {[%emt 0:16:35] unterminated} h6 {[%emt 0:05:23] unterminated} 11. Qe2 {[%emt 0:25:20] unterminated} (11. O-O O-O 12. d4 c5 13. Be3 Qc7 14. Qd2 Kh7 15. Bc2 Be6 16. Rfd1 Rfd8 17. d5 Bd7 18. Nf5 c4 19. Bxh6 Bxf5 20. exf5 gxh6 21. fxg6+ fxg6 {½-½ (21) Vocaturo,D (2606)-Zubov,A (2606) Sitges 2016}) 11... Be6 {[%emt 0:06:06] unterminated} 12. Bd2 $146 {[%emt 0:05:24] unterminated} ({Predecessor:} 12. Nf5 Rg8 13. g4 Qd7 14. g5 hxg5 15. Nxg5 Bxb3 16. axb3 {0-1 (35) Heinechen,J (2012)-Benitez Galeano,A (2121) Asuncion 2018}) 12... b5 {[%emt 0:05:11] unterminated} 13. O-O {[%emt 0:04:13] unterminated} O-O {[%emt 0:01:55] unterminated} 14. Rad1 {[%emt 0:02:19] unterminated} Re8 {unterminated} 15. Nh2 {[%emt 0:06:05] unterminated} d5 {[%emt 0:10:54] unterminated} 16. Bc1 {[%emt 0:02:16]} c5 {[%emt 0:00:33] unterminated} 17. Ng4 {[%emt 0:03:56] unterminated} d4 {unterminated} 18. Bxe6 {[%emt 0:12:46]} fxe6 {[%emt 0:06:39] unterminated} 19. Nxf6+ {[%emt 0:02:15] unterminated} Qxf6 {[%emt 0:00:32]} 20. Qg4 {[%emt 0:01:40] unterminated} c4 {[%emt 0:21:15] unterminated} 21. Nh5 {[%emt 0:02:11]} Qf7 {[%emt 0:00:15] unterminated} 22. cxd4 {[%emt 0:06:43] unterminated} Bxd4 {[%emt 0:01:24]} 23. Kh2 {[%emt 0:00:53] unterminated} Rf8 {[%emt 0:01:56] unterminated} 24. f4 {[%emt 0:01:43]} exf4 {[%emt 0:00:36] unterminated} 25. Nxf4 {unterminated} Be5 {[%emt 0:02:50] unterminated} 26. g3 {[%emt 0:00:59] unterminated} Nxf4 {[%emt 0:02:13]} 27. gxf4 {[%emt 0:00:07]} Bc7 {[%emt 0:00:16] unterminated} 28. Kg2 {[%emt 0:01:42] unterminated} Kh7 {[%emt 0:11:34]} 29. dxc4 {[%emt 0:01:16] unterminated} bxc4 {[%emt 0:00:45] unterminated} 30. f5 {[%emt 0:01:17]} exf5 {[%emt 0:00:40] unterminated} 31. Rxf5 {[%emt 0:01:53]} Qe7 {[%emt 0:00:37]} 32. Bxh6 {[%emt 0:00:59]} Rxf5 {[%emt 0:04:04]} 33. exf5 {[%emt 0:00:24]} gxh6 {[%emt 0:06:29]} 34. Qg6+ {[%emt 0:00:35]} Kh8 {[%emt 0:00:07]} 35. Qxh6+ {[%emt 0:00:04]} Kg8 {[%emt 0:05:11]} 36. Qg6+ {[%emt 0:00:43]} Qg7 {[%emt 0:01:47]} 37. Qxg7+ {[%emt 0:00:04]} Kxg7 {[%emt 0:00:04]} 38. Rd7+ {[%emt 0:00:03]} Kf6 {[%emt 0:00:09]} 39. Rxc7 {[%emt 0:00:04]} Rb8 {[%emt 0:00:14]} 40. b3 {[%emt 0:01:04]} cxb3 {[%emt 0:03:24]} 41. axb3 Rb6 {[%emt 0:31:03]} 42. Rc5 {[%emt 0:30:49]} Rxb3 {[%emt 0:00:11]} 43. Rc6+ {[%emt 0:00:06]} Kxf5 {[%emt 0:00:04]} 44. Rxa6 {[%emt 0:00:04]} Kf4 {[%emt 0:00:26]} 45. Rf6+ {[%emt 0:00:15]} Kg5 {[%emt 0:00:11] normal} 46. Rf2 $11 {[%emt 0:00:38]} Ra3 {[%emt 0:00:28]} 47. Rb2 {[%emt 0:00:17]} Rc3 {[%emt 0:00:14]} 48. Rb5+ {[%emt 0:00:44]} Kf4 {[%emt 0:00:16]} 49. h4 {[%emt 0:00:37]} Rc2+ {[%emt 0:00:08]} 50. Kf1 {[%emt 0:00:06]} Rc1+ {[%emt 0:00:07]} 51. Ke2 {[%emt 0:00:11]} Rc2+ {[%emt 0:00:05]} 52. Kd3 {[%emt 0:00:31]} Rh2 {[%emt 0:00:06]} 53. h5 {[%emt 0:00:03]} Kg4 {[%emt 0:00:06]} 54. Ke4 {[%emt 0:00:24]} Rxh5 {[%emt 0:00:17]} 55. Rxh5 {[%emt 0:00:08]} Kxh5 {[%emt 0:00:05]} 56. Kf5 {[%emt 0:00:01] normal} 1/2-1/2

[Event "DVM U20 2019"]
[Site "Braunschweig"]
[Date "2019.12.28"]
[Round "3"]
[White "Weisheit, Erik"]
[Black "Doerp, Max Marian"]
[Result "1/2-1/2"]
[ECO "C45"]
[WhiteElo "1944"]
[BlackElo "1767"]
[Annotator "NA"]
[PlyCount "91"]
[EventDate "2019.12.27"]
[EventType "team-tourn"]
[EventRounds "7"]
[EventCountry "GER"]
[SourceTitle "playchess.com"]
[Source "ChessBase"]
[SourceQuality "1"]
[WhiteTeam "SF Augsburg"]
[BlackTeam "Lübecker SV"]
[TimeControl "40/5400+30:1800+30"]

1. e4 {[%emt 0:00:00]} e5 {[%emt 0:00:00]} 2. Nf3 {[%emt 0:00:00]} Nc6 {[%emt 0:00:00]} 3. d4 {[%emt 0:00:20]} exd4 {[%emt 0:00:00]} 4. Nxd4 {[%emt 0:00:21]} Nf6 {[%emt 0:00:12]} 5. Nxc6 {[%emt 0:00:39]} bxc6 {[%emt 0:00:09]} 6. e5 {[%emt 0:00:10]} Qe7 {[%emt 0:00:32]} 7. Qe2 {[%emt 0:00:06]} Nd5 {[%emt 0:00:25]} 8. c4 {[%emt 0:00:17] unterminated} Ba6 {[%emt 0:02:09] unterminated} 9. Nd2 {[%emt 0:00:44] unterminated} g6 {[%emt 0:05:42] unterminated} 10. Qe4 {[%emt 0:00:20] unterminated unterminated. C45: Scotch Game} (10. Nf3 Qb4+ 11. Kd1 Ne7 12. Qc2 c5 13. Bd3 Bg7 14. Re1 O-O 15. Qb3 Nc6 16. Bd2 Qb6 17. Qxb6 axb6 {0-1 (32) Jones,G (2668)-Kramnik,V (2803) Douglas 2017}) 10... Nb4 $2 {[%emt 0:17:35] unterminated} (10... Nb6 $15 {keeps the upper hand.}) 11. Nf3 {[%emt 0:15:10] unterminated} d5 {[%emt 0:04:32] unterminated} 12. cxd5 $146 {[%emt 0:11:05]} ({Predecessor:} 12. Qb1 dxc4 13. Bg5 f6 14. Bxf6 {1-0 (14) Busto Campa,J-Muniz Giron,C Gijon 1994}) 12... cxd5 {[%emt 0:01:05] unterminated} 13. Qb1 {[%emt 0:00:22]} Bxf1 {[%emt 0:00:42]} 14. Kxf1 {[%emt 0:00:12] unterminated} Qc5 {[%emt 0:13:23]} 15. a3 {[%emt 0:01:01] unterminated} Nc2 {[%emt 0:10:08] unterminated} 16. Ra2 {[%emt 0:10:43] unterminated} d4 {[%emt 0:04:25] unterminated} 17. b4 {[%emt 0:04:31] unterminated} Qc4+ {[%emt 0:02:11]} 18. Kg1 {[%emt 0:00:38]} d3 {[%emt 0:00:33] unterminated} 19. g3 {[%emt 0:01:24] unterminated} Rd8 {[%emt 0:08:38] unterminated} 20. Bg5 {[%emt 0:03:52] unterminated} Rd7 {[%emt 0:02:46] unterminated} 21. Kg2 {[%emt 0:09:29] unterminated} Qd5 {[%emt 0:07:29] unterminated} 22. Rd1 {[%emt 0:07:37] unterminated} Bg7 {[%emt 0:01:42] unterminated} 23. Rb2 {[%emt 0:09:28] unterminated} Bxe5 {[%emt 0:04:27]} 24. Rb3 {[%emt 0:00:49] unterminated} Qe4 {[%emt 0:03:12] unterminated} 25. Qc1 {[%emt 0:07:16] unterminated} O-O {[%emt 0:03:45]} 26. Qd2 {[%emt 0:00:27] unterminated} f6 {[%emt 0:03:11]} 27. Be3 {[%emt 0:04:21]} Rfd8 {[%emt 0:00:30]} 28. Bxa7 {[%emt 0:01:32]} Qd5 {[%emt 0:02:17]} 29. Rdb1 {[%emt 0:02:09]} Ra8 {[%emt 0:00:55]} 30. Bc5 {[%emt 0:00:18]} Nxa3 {[%emt 0:00:31]} 31. Rxa3 {[%emt 0:03:44]} Rxa3 {[%emt 0:00:07]} 32. Re1 {[%emt 0:00:34]} Rd8 {[%emt 0:01:13]} 33. Rd1 {[%emt 0:04:04]} Ra2 {[%emt 0:00:30]} 34. Qe3 {[%emt 0:00:31]} Re2 {[%emt 0:00:40]} 35. Qh6 {[%emt 0:00:19]} Re8 {[%emt 0:00:58]} 36. Be3 {[%emt 0:01:31]} Bc3 {[%emt 0:00:41]} 37. Qf4 {[%emt 0:00:35]} Be5 {[%emt 0:00:18]} 38. Qg4 {[%emt 0:01:59]} Qb3 {[%emt 0:00:55]} 39. Nxe5 {[%emt 0:01:05]} fxe5 {[%emt 0:00:23]} 40. Qd7 {[%emt 0:00:16]} Qf7 {[%emt 0:00:37] unterminated} 41. Qxd3 {[%emt 0:30:07] unterminated} Ra2 {[%emt 0:01:55] unterminated} 42. Rc1 {[%emt 0:00:00] unterminated} Raa8 {[%emt 0:11:04] unterminated} 43. Qc3 {[%emt 0:00:00]} Rac8 {[%emt 0:00:38]} 44. Rd1 {[%emt 0:00:00] unterminated} e4 {[%emt 0:02:14] unterminated} 45. Bf4 {[%emt 0:00:00] unterminated} g5 {[%emt 0:01:18] unterminated} 46. Bxg5 $11 {[%emt 0:00:00] normal} 1/2-1/2

[Event "DVM U20 2019"]
[Site "Braunschweig"]
[Date "2019.12.28"]
[Round "3"]
[White "Tiedemann, Fin Niklas"]
[Black "McPherson, Elisha"]
[Result "1/2-1/2"]
[ECO "B24"]
[WhiteElo "1936"]
[BlackElo "1975"]
[Annotator "NA RC"]
[PlyCount "48"]
[EventDate "2019.12.27"]
[EventType "team-tourn"]
[EventRounds "7"]
[EventCountry "GER"]
[SourceTitle "playchess.com"]
[Source "ChessBase"]
[SourceQuality "1"]
[WhiteTeam "Lübecker SV"]
[BlackTeam "SF Augsburg"]
[TimeControl "40/5400+30:1800+30"]

1. e4 {[%emt 0:00:00]} c5 {[%emt 0:00:00]} 2. Nc3 {[%emt 0:00:43]} Nc6 {[%emt 0:00:00]} 3. g3 {[%emt 0:00:03]} g6 {[%emt 0:00:00]} 4. Bg2 {[%emt 0:00:04]} Bg7 {[%emt 0:00:00]} 5. d3 {[%emt 0:00:07]} e6 {[%emt 0:00:00]} 6. f4 {[%emt 0:00:27]} Nge7 {[%emt 0:00:01] unterminated} 7. Nf3 {[%emt 0:03:40] unterminated} d5 {[%emt 0:00:48] unterminated} 8. O-O {[%emt 0:02:02] unterminated} O-O {[%emt 0:05:24] unterminated} 9. Kh1 {[%emt 0:17:11] unterminated} dxe4 {[%emt 0:04:38]} 10. Nxe4 {[%emt 0:02:33] unterminated} Qc7 {[%emt 0:09:55] unterminated} (10... b6 $15) 11. Nxc5 {[%emt 0:15:05] unterminated} Nb4 {[%emt 0:03:14]} 12. a3 $1 {[%emt 0:00:06] unterminated} Qxc5 {[%emt 0:06:43]} 13. axb4 {[%emt 0:00:07] unterminated} Qxb4 {[%emt 0:01:45] unterminated} 14. c3 {[%emt 0:00:06]} Qb6 {[%emt 0:02:19] unterminated} 15. Ne5 {[%emt 0:01:40] unterminated} Nc6 {[%emt 0:03:17] unterminated} 16. Qe2 {unterminated} Qc7 {[%emt 0:22:40] unterminated} 17. Nxc6 $11 {[%emt 0:09:50]} bxc6 {[%emt 0:00:06]} 18. Be3 {[%emt 0:02:47]} a6 {[%emt 0:18:04]} 19. Bc5 {[%emt 0:04:00]} Re8 {[%emt 0:00:25]} 20. Qf3 {[%emt 0:02:38]} Bb7 {[%emt 0:00:35]} 21. d4 {[%emt 0:08:19]} Bf8 {[%emt 0:03:09]} 22. Bxf8 {[%emt 0:09:04]} Rxf8 {[%emt 0:00:03]} 23. Qe3 {[%emt 0:06:59]} Rfc8 {[%emt 0:02:48] normal} 24. Ra3 {[%emt 0:07:52] normal} c5 {[%emt 0:03:34] normal} 1/2-1/2

[Event "DVM U20 2019"]
[Site "Braunschweig"]
[Date "2019.12.28"]
[Round "3"]
[White "Triantafillidis, Simeon"]
[Black "Biastoch, Bennet"]
[Result "0-1"]
[ECO "B51"]
[WhiteElo "1931"]
[BlackElo "2242"]
[Annotator "RC"]
[PlyCount "48"]
[EventDate "2019.12.27"]
[EventType "team-tourn"]
[EventRounds "7"]
[EventCountry "GER"]
[SourceTitle "playchess.com"]
[Source "ChessBase"]
[SourceQuality "1"]
[WhiteTeam "SF HN-Biberach"]
[BlackTeam "SG Aufbau Elbe Magdeburg"]
[TimeControl "40/5400+30:1800+30"]

1. e4 {[%emt 0:00:00]} c5 {[%emt 0:00:00]} 2. Nf3 {[%emt 0:00:00]} d6 {[%emt 0:00:00]} 3. Bb5+ {[%emt 0:00:00]} Nd7 {[%emt 0:00:07]} 4. O-O {[%emt 0:00:16]} a6 {[%emt 0:00:19]} 5. Bd3 {[%emt 0:00:06]} Ngf6 {[%emt 0:00:32]} 6. c3 {[%emt 0:00:22]} b5 {[%emt 0:01:31]} 7. Bc2 {[%emt 0:00:09]} Bb7 {[%emt 0:01:03]} 8. Qe2 {[%emt 0:00:33]} e5 {[%emt 0:02:24]} 9. d4 {[%emt 0:02:12]} Be7 {[%emt 0:00:46]} 10. Rd1 {[%emt 0:02:12]} Qc7 {[%emt 0:01:42]} 11. Nbd2 {[%emt 0:00:22]} cxd4 {[%emt 0:00:17]} 12. Nb1 {[%emt 0:05:01]} Rc8 {[%emt 0:03:23]} 13. a3 {[%emt 0:07:01]} O-O {[%emt 0:13:45]} 14. Bg5 {[%emt 0:03:23]} h6 {[%emt 0:01:04]} 15. Bxf6 {[%emt 0:15:58]} Nxf6 {[%emt 0:03:48]} 16. Bd3 {[%emt 0:01:09]} d5 {[%emt 0:12:06]} 17. exd5 {[%emt 0:04:14]} Nxd5 {[%emt 0:00:11]} 18. Bf5 {[%emt 0:08:22]} Nf4 {[%emt 0:05:58]} 19. Qxe5 {[%emt 0:09:25]} Bd6 {[%emt 0:00:23]} 20. Qe1 {[%emt 0:00:10]} Rce8 {[%emt 0:02:39]} 21. Qf1 {[%emt 0:09:02]} Bxf3 {[%emt 0:00:56]} 22. gxf3 {[%emt 0:00:06]} Qc5 {[%emt 0:05:32]} 23. Be4 {[%emt 0:02:58]} Qh5 {[%emt 0:01:26] normal} 24. Kh1 {[%emt 0:12:14]} Rxe4 {[%emt 0:00:23] normal} 0-1

[Event "DVM U20 2019"]
[Site "Braunschweig"]
[Date "2019.12.28"]
[Round "3"]
[White "Brockmeyer, Tobias"]
[Black "Gabler, Eric"]
[Result "0-1"]
[ECO "E25"]
[WhiteElo "1902"]
[BlackElo "2064"]
[Annotator "NA RC"]
[PlyCount "70"]
[EventDate "2019.12.27"]
[EventType "team-tourn"]
[EventRounds "7"]
[EventCountry "GER"]
[SourceTitle "playchess.com"]
[Source "ChessBase"]
[SourceQuality "1"]
[WhiteTeam "SK Lehrte 1919"]
[BlackTeam "SC Bavaria Regensburg"]
[TimeControl "40/5400+30:1800+30"]

1. d4 {[%emt 0:00:00]} Nf6 {[%emt 0:00:00]} 2. c4 {[%emt 0:00:00]} e6 {[%emt 0:00:00]} 3. Nc3 {[%emt 0:00:00]} Bb4 {[%emt 0:00:16]} 4. f3 {[%emt 0:00:00]} d5 {[%emt 0:00:48]} 5. a3 {[%emt 0:00:00]} Bxc3+ {[%emt 0:00:31]} 6. bxc3 {[%emt 0:00:00]} c5 {[%emt 0:03:11]} 7. cxd5 {[%emt 0:00:00]} exd5 {[%emt 0:01:10]} 8. e3 {[%emt 0:00:00]} O-O {[%emt 0:01:15]} 9. Bd3 {[%emt 0:00:03] unterminated} Nc6 {[%emt 0:04:17] unterminated} 10. Ne2 {[%emt 0:00:14] unterminated} Re8 {[%emt 0:08:41]} 11. O-O {[%emt 0:00:13] unterminated} b6 {[%emt 0:04:41] unterminated} 12. Ng3 {[%emt 0:02:34] unterminated} Bb7 {[%emt 0:01:55] unterminated} 13. Ra2 {[%emt 0:06:51] unterminated unterminated. E49: Nimzo-Indian: Rubinstein: 5 Bd3 d5 6 a3 Bxc3+ 7 bxc3} Ne7 {[%emt 0:13:52] unterminated} (13... Qd7 $11 {remains equal.}) 14. Re2 $146 {[%emt 0:04:01] unterminated} ({Predecessor:} 14. Raf2 Ng6 15. Re1 Rc8 16. Bb2 h5 17. Qb1 h4 18. Nf1 Nf8 19. e4 cxd4 20. cxd4 Nh5 {1-0 (35) Bjelobrk,I (2381)-Antic,D (2480) Cammeray 2008}) 14... Qc8 {[%emt 0:06:06] [#] unterminated} 15. Bb2 {[%emt 0:04:49] unterminated} ({White should play} 15. e4 $1 $16) 15... Ba6 {[%emt 0:01:07] unterminated} 16. e4 {[%emt 0:02:54] unterminated} Nd7 {[%emt 0:02:34] unterminated} 17. e5 {[%emt 0:01:44] unterminated} f5 {[%emt 0:02:19] unterminated} 18. f4 {[%emt 0:14:59] unterminated} Nf8 {[%emt 0:02:40] unterminated} 19. a4 {[%emt 0:17:06] unterminated} Ne6 {[%emt 0:04:14]} 20. Rf3 {[%emt 0:02:50]} g6 {[%emt 0:01:39]} 21. Qd2 {[%emt 0:05:09]} Bxd3 {[%emt 0:00:26]} 22. Qxd3 {[%emt 0:00:46]} Qd7 {[%emt 0:00:11]} 23. Qd1 {[%emt 0:07:28]} Rac8 {[%emt 0:02:13]} 24. Nf1 {[%emt 0:08:07]} cxd4 {[%emt 0:05:14]} 25. cxd4 {[%emt 0:01:12]} Rc4 {[%emt 0:00:11]} 26. Ne3 {[%emt 0:04:42]} Qxa4 {[%emt 0:01:08]} 27. Qxa4 {[%emt 0:00:26]} Rxa4 {[%emt 0:00:07]} 28. g4 {[%emt 0:00:07] unterminated} Rxd4 {[%emt 0:09:36] unterminated} 29. gxf5 $19 {[%emt 0:02:36]} Rxf4 {[%emt 0:00:09]} 30. Kg2 {[%emt 0:05:06] normal} Nxf5 {[%emt 0:03:38] normal} 31. Nxd5 {[%emt 0:01:00]} Rxf3 {[%emt 0:01:02]} 32. Kxf3 {[%emt 0:00:20] normal} Nfd4+ {[%emt 0:00:24]} 33. Kf2 {[%emt 0:00:22]} Nxe2 {[%emt 0:01:01] normal} 34. Nf6+ {[%emt 0:00:19]} Kf7 {[%emt 0:00:08] normal} 35. Nxe8 {[%emt 0:00:27]} Kxe8 {[%emt 0:00:09] normal} 0-1

[Event "DVM U20 2019"]
[Site "Braunschweig"]
[Date "2019.12.28"]
[Round "3"]
[White "Rauch, Sören"]
[Black "Keller, Yannik"]
[Result "0-1"]
[ECO "A46"]
[WhiteElo "1901"]
[BlackElo "2020"]
[Annotator "NA"]
[PlyCount "94"]
[EventDate "2019.12.27"]
[EventType "team-tourn"]
[EventRounds "7"]
[EventCountry "GER"]
[SourceTitle "playchess.com"]
[Source "ChessBase"]
[SourceQuality "1"]
[WhiteTeam "SG Trier"]
[BlackTeam "Sges Bensheim"]
[TimeControl "40/5400+30:1800+30"]

1. d4 {[%emt 0:00:00]} Nf6 {[%emt 0:00:00]} 2. Nf3 {[%emt 0:00:00]} d6 {[%emt 0:00:00]} 3. Bf4 {[%emt 0:00:01] unterminated} Nbd7 {[%emt 0:00:00]} 4. e3 {[%emt 0:00:38]} Nh5 {[%emt 0:00:13] unterminated} 5. Bg3 {[%emt 0:03:47]} (5. Nc3 Nxf4 6. exf4 g6 7. h4 Nf6 8. Bd3 Bg4 9. Qe2 c6 10. O-O-O Bh6 11. Qe3 Qa5 12. Rde1 {0-1 (21) Edouard,R (2627)-Fressinet,L (2712) Calvi 2015}) 5... Nxg3 {[%emt 0:00:51]} 6. hxg3 {[%emt 0:00:07] unterminated A46: 1 d4 Nf6 2 Nf3 e6: Torre, London and Colle Systems} g6 {[%emt 0:04:19] unterminated} 7. Bc4 {[%emt 0:03:14] unterminated} e6 {[%emt 0:04:03] unterminated} 8. c3 {[%emt 0:02:08] unterminated} Bg7 {[%emt 0:04:48]} 9. Nbd2 {[%emt 0:00:35] unterminated} a6 {[%emt 0:06:00] unterminated} 10. a4 $146 {[%emt 0:01:14]} ({Predecessor:} 10. Qc2 Qe7 11. Bd3 b6 12. a4 {0-1 (35) Gueldner,U (1687)-Maier,A (2280) Erlangen 2003}) 10... b6 {[%emt 0:00:22] unterminated} 11. Qc2 {[%emt 0:07:15] unterminated} Bb7 {[%emt 0:02:25] unterminated} 12. O-O {[%emt 0:02:32] unterminated} O-O {[%emt 0:01:40] unterminated} 13. Rfe1 {[%emt 0:02:28] unterminated} Qe7 {[%emt 0:05:41] unterminated} 14. Bf1 {[%emt 0:07:18] unterminated} e5 {[%emt 0:03:52]} 15. dxe5 {[%emt 0:02:03]} dxe5 {[%emt 0:01:30]} 16. Rad1 {[%emt 0:04:53]} e4 {[%emt 0:05:16]} 17. Nd4 {[%emt 0:02:58]} c5 {[%emt 0:06:24]} 18. N4b3 {[%emt 0:03:45]} Rfd8 {[%emt 0:07:35]} 19. Nc4 {[%emt 0:02:50]} Bc6 {[%emt 0:04:06]} 20. Nbd2 {[%emt 0:07:01]} Rab8 {[%emt 0:06:31]} 21. Na3 {[%emt 0:06:08]} b5 {[%emt 0:04:14]} 22. axb5 {[%emt 0:00:52]} axb5 {[%emt 0:00:07]} 23. c4 {[%emt 0:00:40]} b4 {[%emt 0:01:41]} 24. Nb5 {[%emt 0:00:11]} f5 {[%emt 0:02:16]} 25. Nb3 {[%emt 0:05:23]} Ne5 {[%emt 0:01:49]} 26. Na5 {[%emt 0:09:35]} Be8 {[%emt 0:00:40]} 27. Rxd8 Rxd8 {[%emt 0:01:19]} 28. Rd1 {[%emt 0:10:31]} h5 {[%emt 0:04:00]} 29. Rd5 {[%emt 0:02:08]} Bxb5 {[%emt 0:04:45]} 30. Rxe5 Qxe5 {[%emt 0:01:37]} 31. cxb5 {[%emt 0:00:34]} Qxb2 {[%emt 0:00:58]} 32. Qxc5 {[%emt 0:00:16] unterminated} Kh7 {[%emt 0:04:49] unterminated} 33. b6 {[%emt 0:00:55] unterminated} Qc3 {[%emt 0:00:58] unterminated} 34. Qb5 {[%emt 0:02:49] unterminated} Qe5 {[%emt 0:05:26] unterminated} 35. Qxb4 {[%emt 0:01:40]} Qd6 {[%emt 0:00:44]} 36. Qb5 {[%emt 0:01:06]} Rb8 {[%emt 0:01:45]} 37. b7 {[%emt 0:00:22]} Qc7 {[%emt 0:00:52]} 38. Bc4 {[%emt 0:01:44]} Bc3 {[%emt 0:00:22]} 39. Nc6 {[%emt 0:00:08]} Rxb7 {[%emt 0:00:33]} 40. Qd5 {[%emt 0:00:07] unterminated} Qg7 {[%emt 0:03:50] unterminated} 41. Qe6 {[%emt 0:30:57] unterminated} Rb1+ {[%emt 0:09:46]} 42. Kh2 $2 {[%emt 0:00:00] unterminated} (42. Bf1 {only move.}) 42... Be1 {[%emt 0:01:35] unterminated} 43. f3 {[%emt 0:00:00] unterminated} exf3 $2 {[%emt 0:01:04]} (43... Bf2 44. Qf7 Qxf7 45. Bxf7 Bg1+ 46. Kh3 Bxe3) 44. gxf3 {[%emt 0:00:00] unterminated} (44. Ne5 $19 fxg2 45. Kxg2) 44... h4 $19 {[%emt 0:02:44]} (44... Qb2+ $142 45. Kh3 Bc3 46. Qf7+ Kh6 47. Qxg6+ Kxg6 48. Ne7+ Kg7 49. Nxf5+ Kf6 50. Be2 Qxe2 51. g4 Qxf3+ {[%mdl 64] Double Attack} 52. Ng3 Rh1#) 45. gxh4 {[%emt 0:00:00]} Bxh4 {[%emt 0:00:22]} 46. Ne5 {[%emt 0:00:00]} Bg5 {[%emt 0:06:01]} 47. Nf7 {[%emt 0:00:00]} Qb2+ {[%emt 0:00:12] normal} 0-1